fUSD/lending_fUSD_20240201
["ID","MTS","AMOUNT","RATE_DAILY","PERIOD"]
[313125835,1706778650919,-712.69,0.00030136,2]
[313125836,1706778650928,-500.0,0.00030136,2]
[313125837,1706778650937,-500.0,0.00030136,2]
[313125838,1706778650946,-2861.0,0.00030137,4]
[313125839,1706778650956,-130189.0,0.00030137,4]
[313125840,1706778650965,-153.87,0.00030137,2]
[313125841,1706778650974,-500.0,0.00030138,2]
[313125842,1706778650984,-5344.9268168,0.00030139,2]
[313125843,1706778650994,-15092.0303442,0.00030139,2]
[313125844,1706778651004,-740.1221456,0.0003016,2]
[313125845,1706778651016,-171.10215331,0.00030181,2]
[313125846,1706778651027,-200.0,0.00030208,3]
[313125847,1706778651036,-800.0,0.00030208,2]
[313125848,1706778651045,-200.0,0.00030235,3]
[313125849,1706778651054,-154.30799327,0.00030285,2]
[313125850,1706778651063,-2769.4487,0.0003035,2]
[313125851,1706778651072,-586.0,0.00030379,5]
[313125852,1706778651082,-168.55,0.00030379,2]
[313125853,1706778651091,-200.0,0.00030522,3]
[313125854,1706778651100,-800.0,0.00030522,2]
[313125855,1706778651109,-166.64,0.00030643,2]
[313125856,1706778651118,-2769.4487,0.0003066,2]
[313125857,1706778651127,-512.1,0.00030681,2]
[313125858,1706778651136,-652.34,0.00030681,2]
[313125859,1706778651146,-637.54,0.00030681,2]
[313125860,1706778651154,-2852.19,0.00030681,2]
[313125861,1706778651164,-500.0,0.00030681,2]
[313125862,1706778651173,-500.0,0.00030682,2]
[313125863,1706778651182,-500.0,0.00030682,2]
[313125864,1706778651191,-500.0,0.00030682,2]
[313125865,1706778651200,-1114.08,0.00030682,2]
[313125866,1706778651209,-500.0,0.00030682,2]
[313125867,1706778651218,-500.0,0.00030682,2]
[313125868,1706778651228,-500.0,0.00030682,2]
[313125869,1706778651238,-500.0,0.00030682,2]
[313125870,1706778651249,-690.76,0.00030682,2]
[313125871,1706778651259,-500.0,0.00030682,2]
[313125872,1706778651267,-571.66,0.00030682,2]
[313125873,1706778651277,-500.0,0.00030684,2]
[313125874,1706778651286,-500.0,0.00030684,2]
[313125875,1706778651295,-507.16,0.00030684,2]
[313125876,1706778651305,-535.24650799,0.00030684,2]
[313125877,1706778651314,-571.02,0.00030684,7]
[313125878,1706778651323,-500.0,0.00030684,2]
[313125879,1706778651333,-500.0,0.00030684,2]
[313125880,1706778651343,-500.0,0.00030684,2]
[313125881,1706778651352,-727.73,0.00030684,2]
[313125882,1706778651361,-2784.64,0.00030684,2]
[313125883,1706778651370,-500.0,0.00030684,2]
[313125884,1706778651379,-860.78,0.00030684,2]
[313125885,1706778651388,-562.44,0.00030684,2]
[313125886,1706778651397,-500.0,0.00030684,2]
[313125887,1706778651406,-500.0,0.00030684,2]
[313125888,1706778651416,-1719.87,0.00030684,2]
[313125889,1706778651425,-659.48,0.00030684,2]
[313125890,1706778651434,-500.0,0.00030684,2]
[313125891,1706778651444,-500.0,0.00030684,2]
[313125892,1706778651453,-500.0,0.00030684,2]
[313125893,1706778651462,-500.0,0.00030684,2]
[313125894,1706778651471,-748.96,0.00030684,2]
[313125895,1706778651481,-1740.65,0.00030684,2]
[313125896,1706778651490,-500.0,0.00030684,2]
[313125897,1706778651499,-500.0,0.00030684,2]
[313125898,1706778651509,-500.0,0.00030684,2]
[313125899,1706778651520,-500.0,0.00030684,2]
[313125900,1706778651529,-500.0,0.00030684,2]
[313125901,1706778651538,-500.0,0.00030684,2]
[313125902,1706778651548,-965.96,0.00030684,2]
[313125903,1706778651557,-562.27,0.00030684,2]
[313125904,1706778651566,-595.36,0.00030684,2]
[313125905,1706778651575,-500.0,0.00030684,2]
[313125906,1706778651585,-752.71,0.00030684,2]
[313125907,1706778651594,-500.0,0.00030684,2]
[313125908,1706778651603,-1110.9,0.00030684,2]
[313125909,1706778651613,-500.0,0.00030684,2]
[313125910,1706778651622,-500.0,0.00030684,2]
[313125911,1706778651631,-701.69,0.00030684,2]
[313125912,1706778651642,-500.0,0.00030684,2]
[313125913,1706778651651,-500.0,0.00030684,2]
[313125914,1706778651660,-789.27,0.00030684,2]
[313125915,1706778651669,-500.0,0.00030684,2]
[313125916,1706778651678,-500.0,0.00030684,2]
[313125917,1706778651687,-948.54,0.00030684,2]
[313125918,1706778651696,-1122.8,0.00030684,2]
[313125919,1706778651705,-505.98,0.00030684,2]
[313125920,1706778651715,-500.0,0.00030684,2]
[313125921,1706778651724,-393.21435584,0.00030684,2]
[313125922,1706778651733,-500.0,0.00030684,2]
[313125923,1706778651743,-334.75980549,0.00030684,2]
[313125924,1706778651752,-705.17,0.00030684,2]
[313125925,1706778651762,-500.0,0.00030684,2]
[313125926,1706778651771,-1466.89,0.00030684,2]
[313125927,1706778651782,-500.0,0.00030684,2]
[313125928,1706778651791,-500.0,0.00030684,2]
[313125929,1706778651800,-500.0,0.00030684,2]
[313125930,1706778651809,-500.0,0.00030684,2]
[313125931,1706778651819,-500.0,0.00030684,2]
[313125932,1706778651830,-500.0,0.00030684,2]
[313125933,1706778651840,-500.0,0.00030684,2]
[313125934,1706778651849,-169.87547072,0.00030684,2]
[313125935,1706778651858,-1066.44,0.00030684,2]
[313125936,1706778651867,-500.0,0.00030684,2]
[313125937,1706778651877,-842.3,0.00030684,2]
[313125938,1706778651886,-500.0,0.00030684,2]
[313125939,1706778651895,-601.04571133,0.00030684,2]
[313125940,1706778651904,-500.0,0.00030684,2]
[313125941,1706778651914,-500.0,0.00030684,2]
[313125942,1706778651923,-500.0,0.00030684,2]
[313125943,1706778651932,-500.0,0.00030684,2]
[313125944,1706778651941,-500.0,0.00030684,2]
[313125945,1706778651951,-548.67,0.00030684,2]
[313125946,1706778651960,-622.83887151,0.00030684,2]
[313125947,1706778651970,-500.0,0.00030684,2]
[313125948,1706778651979,-500.0,0.00030684,2]
[313125949,1706778651989,-500.0,0.00030684,2]
[313125950,1706778652000,-9967.14,0.00030684,2]
[313125951,1706778652009,-520.95,0.00030684,2]
[313125952,1706778652017,-786.41,0.00030684,5]
[313125953,1706778652027,-500.0,0.00030684,2]
[313125954,1706778652036,-518.92,0.00030684,2]
[313125955,1706778652045,-847.38,0.00030684,2]
[313125956,1706778652054,-1428.6,0.00030684,5]
[313125957,1706778652064,-1586.17,0.00030684,2]
[313125958,1706778652073,-2377.68,0.00030684,2]
[313125959,1706778652082,-1848.73,0.00030684,2]
[313125960,1706778652091,-954.76,0.00030684,2]
[313125961,1706778652100,-781.3,0.00030684,2]
[313125962,1706778652110,-500.0,0.00030684,2]
[313125963,1706778652119,-529.85,0.00030684,2]
[313125964,1706778652128,-500.0,0.00030684,2]
[313125965,1706778652139,-979.26,0.00030684,2]
[313125966,1706778652148,-714.71,0.00030684,2]
[313125967,1706778652158,-518.12,0.00030684,2]
[313125968,1706778652167,-1530.57,0.00030684,2]
[313125969,1706778652176,-914.52,0.00030684,2]
[313125970,1706778652185,-500.0,0.00030684,2]
[313125971,1706778652194,-500.0,0.00030684,2]
[313125972,1706778652203,-500.0,0.00030684,2]
[313125973,1706778652212,-500.0,0.00030684,2]
[313125974,1706778652221,-712.69,0.00030684,2]
[313125975,1706778652230,-500.0,0.00030684,2]
[313125976,1706778652239,-500.0,0.00030684,2]
[313125977,1706778652249,-1165.71011545,0.00030832,5]
[313125978,1706778652261,-200.0,0.00030835,3]
[313125979,1706778652270,-800.0,0.00030835,2]
[313125980,1706778652278,-295.68851017,0.00030836,4]
[313125981,1706778652288,-5758.54772641,0.00030874,2]
[313125982,1706778652297,-251.28,0.00030877,2]
[313125983,1706778652306,-435.18398474,0.00030879,2]
[313125984,1706778652316,-5792.02525789,0.000309,2]
[313125985,1706778652326,-2836.98887318,0.000309,2]
[313125986,1706778652346,-13127.33082328,0.000309,2]
[313125987,1706778652356,-265.72946314,0.000309,18]
[313125988,1706778652366,-32793.41869556,0.00030958,2]
[313125989,1706778652379,-35813.52101802,0.00030958,2]
[313125990,1706778687315,2151.71561141,0.00022422,14]
[313125991,1706778687340,6808.11138859,0.00022422,14]
[313125998,1706779831912,-338.11095919,0.00026142,2]
[313125999,1706779831922,-35.79108956,0.00026143,2]
[313126000,1706779831969,-119.20891044,0.00026143,2]
[313126001,1706779831978,-2151.7156,0.00026149,14]
[313126002,1706779831987,-224.04406869,0.00026593,2]
[313126003,1706779831996,-15.27379564,0.00026693,2]
[313126004,1706779832008,-184.10620436,0.00026693,2]
[313126005,1706779832018,-250.0,0.00026939,2]
[313126006,1706779832027,-318.13,0.00026974,2]
[313126007,1706779832036,-82.03255491,0.00027005,2]
[313126008,1706779833371,-167.96744509,0.00027005,2]
[313126009,1706779833380,-1000.0,0.00027012,2]
[313126010,1706779833390,-224.04406869,0.00027064,2]
[313126011,1706779833399,-179.91,0.00027083,2]
[313126012,1706779833408,-150.0,0.00027099,2]
[313126013,1706779833417,-520.85008861,0.0002711,2]
[313126014,1706779833429,-2000.89991139,0.0002711,2]
[313126015,1706779833438,-108.08247312,0.00027124,2]
[313126016,1706779833449,-319.24149127,0.00027124,2]
[313126017,1706779833461,-357.46371413,0.00027124,2]
[313126018,1706779833477,-2393.0359926,0.00027124,2]
[313126019,1706779833488,-3625.306,0.00027124,2]
[313126020,1706779833511,-17066.72032888,0.00027124,2]
[313126021,1706779833520,-470.92,0.00027195,2]
[313126022,1706779833530,-236.09,0.0002724,2]
[313126023,1706779833538,-738.46,0.00027298,2]
[313126024,1706779833547,-4536.0,0.000273,2]
[313126025,1706779833557,-2628.0,0.000273,2]
[313126026,1706779833567,-417.44945802,0.00027395,2]
[313126027,1706779833576,-494.06886089,0.00027395,2]
[313126028,1706779833585,-176.89925003,0.00027396,2]
[313126029,1706779833595,-4655.74947603,0.00027396,2]
[313126031,1706779833605,-616.28,0.00027397,2]
[313126033,1706779833615,-485.84175044,0.00027397,2]
[313126035,1706779833626,-500.0,0.00027397,2]
[313126037,1706779833638,-987.61,0.00027397,2]
[313126039,1706779833648,-500.0,0.00027397,2]
[313126041,1706779833657,-500.0,0.00027397,2]
[313126043,1706779833667,-500.0,0.00027397,2]
[313126045,1706779833676,-500.0,0.00027397,2]
[313126047,1706779833685,-500.0,0.00027397,2]
[313126049,1706779833694,-881.41,0.00027397,2]
[313126051,1706779833702,-155.0,0.00027397,2]
[313126053,1706779833713,-1000.0,0.000274,2]
[313126055,1706779833722,-170.81,0.00027868,2]
[313126057,1706779833731,-616.28,0.00027945,2]
[313126059,1706779833740,-500.0,0.00027945,2]
[313126061,1706779833749,-987.61,0.00027945,2]
[313126063,1706779833758,-500.0,0.00027945,2]
[313126065,1706779833767,-500.0,0.00027945,2]
[313126067,1706779833778,-500.0,0.00027945,2]
[313126069,1706779833787,-500.0,0.00027945,2]
[313126071,1706779833796,-500.0,0.00027945,2]
[313126073,1706779833805,-881.41,0.00027945,2]
[313126075,1706779833815,-689.6884,0.00028393,2]
[313126077,1706779833824,-616.28,0.00028493,2]
[313126079,1706779833833,-500.0,0.00028493,2]
[313126081,1706779833842,-987.61,0.00028493,2]
[313126082,1706779833852,-365.35,0.00028493,2]
[313126084,1706779833861,-500.0,0.00028493,2]
[313126087,1706779833870,-500.0,0.00028493,2]
[313126088,1706779833879,-500.0,0.00028493,2]
[313126090,1706779833888,-500.0,0.00028493,2]
[313126093,1706779833898,-881.41,0.00028493,2]
[313126094,1706779833907,-199.38,0.00028957,2]
[313126096,1706779833917,-290.40617084,0.00029,2]
[313126099,1706779833926,-214.5,0.00029029,10]
[313126101,1706779833935,-500.0,0.00029039,2]
[313126103,1706779833945,-500.0,0.00029039,7]
[313126105,1706779833953,-500.0,0.00029039,2]
[313126107,1706779833963,-305.76026729,0.00029039,2]
[313126108,1706779833971,-500.0,0.00029039,2]
[313126110,1706779833980,-500.0,0.00029039,2]
[313126112,1706779833989,-500.0,0.00029039,2]
[313126115,1706779833998,-341.47,0.00029039,2]
[313126116,1706779834008,-500.0,0.00029039,2]
[313126118,1706779834017,-500.0,0.00029039,2]
[313126120,1706779834027,-500.0,0.00029039,2]
[313126122,1706779834036,-606.44,0.00029039,2]
[313126124,1706779834045,-500.0,0.00029039,2]
[313126126,1706779834054,-500.0,0.00029039,2]
[313126128,1706779834062,-500.0,0.00029039,2]
[313126130,1706779834072,-500.0,0.00029039,2]
[313126132,1706779834081,-1540.6,0.00029039,2]
[313126133,1706779834090,-500.0,0.00029039,2]
[313126135,1706779834099,-281.54661491,0.00029039,2]
[313126137,1706779834108,-595.6,0.00029039,2]
[313126140,1706779834118,-500.0,0.00029039,2]
[313126142,1706779834127,-1338.46,0.00029039,2]
[313126143,1706779834136,-500.0,0.00029039,2]
[313126145,1706779834146,-500.0,0.00029039,2]
[313126147,1706779834155,-500.0,0.00029039,2]
[313126149,1706779834165,-500.0,0.00029039,2]
[313126151,1706779834174,-500.0,0.00029039,2]
[313126153,1706779834185,-500.0,0.00029039,2]
[313126155,1706779834194,-500.0,0.00029039,2]
[313126157,1706779834203,-500.0,0.00029039,2]
[313126159,1706779834212,-500.0,0.00029039,2]
[313126160,1706779834221,-500.0,0.00029039,2]
[313126161,1706779834230,-500.0,0.00029039,2]
[313126162,1706779834239,-500.0,0.00029039,2]
[313126163,1706779834248,-500.0,0.00029039,2]
[313126164,1706779834259,-500.0,0.00029039,2]
[313126165,1706779834269,-2075.49,0.00029039,2]
[313126166,1706779834278,-717.31,0.00029039,2]
[313126167,1706779834287,-500.0,0.00029039,2]
[313126168,1706779834296,-500.0,0.00029039,2]
[313126169,1706779834304,-585.86,0.00029039,2]
[313126170,1706779834313,-500.0,0.00029039,2]
[313126171,1706779834322,-500.0,0.00029039,2]
[313126173,1706779834331,-500.0,0.00029039,2]
[313126175,1706779834340,-500.0,0.00029039,2]
[313126177,1706779834349,-500.0,0.00029039,2]
[313126179,1706779834358,-593.9,0.00029039,2]
[313126181,1706779834367,-500.0,0.00029039,2]
[313126183,1706779834376,-500.0,0.00029039,2]
[313126185,1706779834385,-500.0,0.00029039,2]
[313126187,1706779834394,-500.0,0.00029039,2]
[313126189,1706779834403,-500.0,0.00029039,2]
[313126191,1706779834412,-500.0,0.00029039,2]
[313126192,1706779834421,-669.94,0.00029039,2]
[313126193,1706779834430,-500.0,0.00029039,2]
[313126194,1706779834439,-500.0,0.00029039,2]
[313126195,1706779834447,-925.75,0.00029039,2]
[313126196,1706779834456,-500.0,0.00029039,2]
[313126197,1706779834466,-1433.23,0.00029039,2]
[313126198,1706779834475,-500.0,0.00029039,2]
[313126199,1706779834483,-500.0,0.00029039,2]
[313126200,1706779834492,-500.0,0.00029039,2]
[313126201,1706779834501,-804.97,0.00029039,2]
[313126202,1706779834510,-500.0,0.00029039,2]
[313126203,1706779834520,-500.0,0.00029039,2]
[313126204,1706779834528,-500.0,0.00029039,2]
[313126205,1706779834537,-657.73,0.00029039,2]
[313126206,1706779834546,-500.0,0.00029039,2]
[313126207,1706779834555,-500.0,0.00029039,2]
[313126208,1706779834564,-500.0,0.00029039,2]
[313126209,1706779834573,-500.0,0.00029039,2]
[313126210,1706779834582,-1190.5,0.00029039,5]
[313126211,1706779834591,-500.0,0.00029039,2]
[313126212,1706779834600,-500.0,0.00029039,2]
[313126213,1706779834609,-500.0,0.00029039,2]
[313126214,1706779834618,-500.0,0.00029039,2]
[313126215,1706779834628,-500.0,0.00029039,2]
[313126216,1706779834641,-1208.78,0.00029039,2]
[313126217,1706779834650,-500.0,0.00029039,2]
[313126218,1706779834660,-500.0,0.00029039,2]
[313126219,1706779834669,-625.73,0.00029039,2]
[313126220,1706779834679,-546.73702577,0.00029039,2]
[313126221,1706779834688,-1305.5,0.00029039,2]
[313126222,1706779834697,-500.0,0.00029039,2]
[313126223,1706779834706,-500.0,0.00029039,2]
[313126224,1706779834716,-500.0,0.00029039,2]
[313126225,1706779834726,-500.0,0.00029039,2]
[313126226,1706779834735,-534.07,0.00029039,2]
[313126227,1706779834744,-500.0,0.00029039,2]
[313126228,1706779834753,-500.0,0.00029039,2]
[313126229,1706779834763,-500.0,0.00029039,2]
[313126230,1706779834773,-701.92,0.00029039,2]
[313126231,1706779834782,-500.0,0.00029039,2]
[313126232,1706779834791,-500.0,0.00029039,2]
[313126233,1706779834800,-500.0,0.00029039,2]
[313126234,1706779834810,-500.0,0.00029039,2]
[313126235,1706779834819,-500.0,0.00029039,2]
[313126236,1706779834828,-500.0,0.00029039,2]
[313126237,1706779834837,-500.0,0.00029039,2]
[313126238,1706779834846,-627.26,0.00029039,2]
[313126239,1706779834855,-500.0,0.00029039,2]
[313126240,1706779834864,-500.0,0.00029039,2]
[313126241,1706779834874,-986.24,0.00029039,2]
[313126242,1706779834883,-500.0,0.00029039,2]
[313126243,1706779834892,-762.1,0.00029039,2]
[313126244,1706779834901,-500.0,0.00029039,2]
[313126245,1706779834911,-655.35,0.00029039,5]
[313126246,1706779834920,-500.0,0.00029039,2]
[313126247,1706779834929,-624.83,0.00029039,2]
[313126248,1706779834938,-500.0,0.00029039,2]
[313126249,1706779834947,-795.63,0.00029039,2]
[313126250,1706779834956,-500.0,0.00029039,2]
[313126251,1706779834966,-500.0,0.00029039,2]
[313126252,1706779834975,-500.0,0.00029039,2]
[313126253,1706779834984,-375.54511641,0.00029039,2]
[313126254,1706779834992,-816.05,0.00029039,2]
[313126255,1706779835001,-557.84,0.00029039,2]
[313126256,1706779835010,-706.15,0.00029039,2]
[313126257,1706779835020,-500.0,0.00029039,2]
[313126258,1706779835030,-500.0,0.00029039,2]
[313126259,1706779835040,-500.0,0.00029039,2]
[313126260,1706779835049,-43051.73254667,0.0002904,2]
[313126261,1706779835059,-500.0,0.0002904,2]
[313126262,1706779835068,-500.0,0.0002904,2]
[313126263,1706779835078,-232.87367968,0.0002904,2]
[313126264,1706779835087,-500.0,0.0002904,2]
[313126265,1706779835097,-500.0,0.0002904,2]
[313126266,1706779835106,-500.0,0.0002904,2]
[313126267,1706779835115,-531.55857404,0.0002904,2]
[313126268,1706779835125,-521.68690562,0.0002904,2]
[313126269,1706779835134,-500.0,0.0002904,2]
[313126270,1706779835143,-534.32455932,0.0002904,2]
[313126271,1706779835153,-500.0,0.0002904,2]
[313126272,1706779835163,-500.0,0.0002904,2]
[313126273,1706779835172,-500.0,0.0002904,2]
[313126274,1706779835182,-500.0,0.0002904,2]
[313126275,1706779835191,-500.0,0.0002904,2]
[313126276,1706779835200,-500.0,0.0002904,2]
[313126277,1706779835209,-500.0,0.0002904,2]
[313126278,1706779835218,-587.58495478,0.0002904,2]
[313126279,1706779835227,-500.0,0.0002904,2]
[313126280,1706779835237,-500.0,0.0002904,2]
[313126281,1706779835246,-500.0,0.0002904,2]
[313126282,1706779835256,-888.7,0.0002904,2]
[313126283,1706779835265,-500.0,0.0002904,2]
[313126284,1706779835276,-500.0,0.0002904,2]
[313126285,1706779835289,-8305.95,0.0002904,2]
[313126286,1706779835298,-229.57759608,0.0002904,2]
[313126287,1706779835559,-359.237999,0.0002904,2]
[313126288,1706779835574,-1906.85440492,0.0002904,2]
[313126289,1706779835584,-10.13267636,0.0002904,2]
[313126300,1706779837969,-500.0,0.00029039,2]
[313126301,1706779837977,-640.95732364,0.0002904,2]
[313126302,1706779837987,-500.0,0.0002904,2]
[313126303,1706779837997,-1275.47,0.0002904,2]
[313126304,1706779838007,-500.0,0.0002904,2]
[313126305,1706779838016,-2320.53,0.0002904,2]
[313126306,1706779838026,-500.0,0.0002904,2]
[313126307,1706779838035,-648.56274923,0.0002904,2]
[313126308,1706779838044,-500.0,0.0002904,2]
[313126309,1706779838053,-557.61902005,0.0002904,2]
[313126310,1706779838063,-500.0,0.0002904,2]
[313126311,1706779838073,-500.0,0.0002904,2]
[313126312,1706779838083,-969.56,0.0002904,2]
[313126313,1706779838093,-500.0,0.0002904,2]
[313126314,1706779838102,-500.0,0.0002904,2]
[313126315,1706779838111,-500.0,0.0002904,2]
[313126316,1706779838121,-515.00358927,0.0002904,2]
[313126317,1706779838130,-500.0,0.0002904,2]
[313126318,1706779838139,-500.0,0.0002904,2]
[313126319,1706779838148,-575.64,0.0002904,2]
[313126320,1706779838157,-616.28,0.00029041,2]
[313126321,1706779838167,-500.0,0.00029041,2]
[313126322,1706779838176,-987.61,0.00029041,2]
[313126323,1706779838187,-500.0,0.00029041,2]
[313126324,1706779838197,-500.0,0.00029041,2]
[313126325,1706779838207,-881.41,0.00029041,2]
[313126326,1706779838216,-728.5688222,0.00029488,4]
[313126327,1706779838226,-521.05,0.00029586,2]
[313126328,1706779838236,-500.0,0.00029586,2]
[313126329,1706779838245,-500.0,0.00029587,2]
[313126330,1706779838255,-500.0,0.00029587,7]
[313126331,1706779838264,-500.0,0.00029587,2]
[313126332,1706779838274,-500.0,0.00029587,2]
[313126333,1706779838282,-500.0,0.00029587,2]
[313126334,1706779838291,-500.0,0.00029587,2]
[313126335,1706779838300,-500.0,0.00029587,2]
[313126336,1706779838309,-500.0,0.00029587,2]
[313126337,1706779838318,-606.44,0.00029587,2]
[313126338,1706779838327,-500.0,0.00029587,2]
[313126339,1706779838336,-500.0,0.00029587,2]
[313126340,1706779838345,-500.0,0.00029587,2]
[313126341,1706779838355,-1540.6,0.00029587,2]
[313126342,1706779838365,-595.6,0.00029587,2]
[313126343,1706779838374,-500.0,0.00029587,2]
[313126344,1706779838383,-1338.46,0.00029587,2]
[313126345,1706779838391,-500.0,0.00029587,2]
[313126346,1706779838400,-500.0,0.00029587,2]
[313126347,1706779838410,-500.0,0.00029587,2]
[313126348,1706779838419,-500.0,0.00029587,2]
[313126349,1706779838428,-500.0,0.00029587,2]
[313126350,1706779838437,-500.0,0.00029587,2]
[313126351,1706779838446,-500.0,0.00029587,2]
[313126352,1706779838455,-232.3404297,0.00029587,2]
[313126353,1706779838464,-500.0,0.00029587,2]
[313126354,1706779838473,-500.0,0.00029587,2]
[313126355,1706779838482,-500.0,0.00029587,2]
[313126356,1706779838491,-500.0,0.00029587,2]
[313126357,1706779838499,-500.0,0.00029587,2]
[313126358,1706779838508,-2075.49,0.00029587,2]
[313126359,1706779838517,-717.31,0.00029587,2]
[313126360,1706779838526,-526.99910483,0.00029587,2]
[313126361,1706779838535,-500.0,0.00029587,2]
[313126362,1706779838544,-585.86,0.00029587,2]
[313126363,1706779838553,-500.0,0.00029587,2]
[313126364,1706779838562,-500.0,0.00029587,2]
[313126365,1706779838571,-500.0,0.00029587,2]
[313126366,1706779838580,-613.6091889,0.00029587,2]
[313126367,1706779838589,-593.9,0.00029587,2]
[313126368,1706779838598,-500.0,0.00029587,2]
[313126369,1706779838607,-500.0,0.00029587,2]
[313126370,1706779838616,-500.0,0.00029587,2]
[313126371,1706779838625,-500.0,0.00029587,2]
[313126372,1706779838636,-500.0,0.00029587,2]
[313126373,1706779838645,-500.0,0.00029587,2]
[313126374,1706779838654,-669.94,0.00029587,2]
[313126375,1706779838662,-500.0,0.00029587,2]
[313126376,1706779838670,-500.0,0.00029587,2]
[313126377,1706779838680,-925.75,0.00029587,2]
[313126378,1706779838689,-500.0,0.00029587,2]
[313126379,1706779838698,-1433.23,0.00029587,2]
[313126380,1706779838707,-500.0,0.00029587,2]
[313126381,1706779838717,-500.0,0.00029587,2]
[313126382,1706779838726,-500.0,0.00029587,2]
[313126383,1706779838735,-804.97,0.00029587,2]
[313126384,1706779838745,-500.0,0.00029587,2]
[313126385,1706779838753,-500.0,0.00029587,2]
[313126386,1706779838762,-500.0,0.00029587,2]
[313126387,1706779838772,-657.73,0.00029587,2]
[313126388,1706779838781,-500.0,0.00029587,2]
[313126389,1706779838790,-500.0,0.00029587,2]
[313126390,1706779838799,-500.0,0.00029587,2]
[313126391,1706779838808,-500.0,0.00029587,2]
[313126392,1706779838817,-1190.5,0.00029587,5]
[313126393,1706779838826,-500.0,0.00029587,2]
[313126394,1706779838835,-500.0,0.00029587,2]
[313126395,1706779838843,-500.0,0.00029587,2]
[313126396,1706779838852,-500.0,0.00029587,2]
[313126397,1706779838862,-500.0,0.00029587,2]
[313126398,1706779838871,-1208.78,0.00029587,2]
[313126399,1706779838880,-500.0,0.00029587,2]
[313126400,1706779838889,-500.0,0.00029587,2]
[313126401,1706779838898,-625.73,0.00029587,2]
[313126402,1706779838907,-1305.5,0.00029587,2]
[313126403,1706779838916,-500.0,0.00029587,2]
[313126404,1706779838926,-500.0,0.00029587,2]
[313126405,1706779838934,-500.0,0.00029587,2]
[313126406,1706779838944,-534.07,0.00029587,2]
[313126407,1706779838953,-500.0,0.00029587,2]
[313126408,1706779838962,-500.0,0.00029587,2]
[313126409,1706779838971,-500.0,0.00029587,2]
[313126410,1706779838981,-701.92,0.00029587,2]
[313126411,1706779838990,-500.0,0.00029587,2]
[313126412,1706779839200,-500.0,0.00029587,2]
[313126413,1706779839209,-606.90103443,0.00029587,2]
[313126414,1706779839219,-500.0,0.00029587,2]
[313126415,1706779839228,-500.0,0.00029587,2]
[313126416,1706779839237,-500.0,0.00029587,2]
[313126417,1706779839246,-627.26,0.00029587,2]
[313126418,1706779839255,-500.0,0.00029587,2]
[313126419,1706779839263,-500.0,0.00029587,2]
[313126420,1706779839273,-986.24,0.00029587,2]
[313126421,1706779839282,-500.0,0.00029587,2]
[313126422,1706779839292,-762.1,0.00029587,2]
[313126423,1706779839302,-655.35,0.00029587,5]
[313126424,1706779839310,-500.0,0.00029587,2]